Workbook

Sheet Info
B1: 1 Elmfield Park, Bromley, United Kingdom, BR1 1LU W- www.businessxbridge.co.uk E-contact@businessxbridge.co.uk Hot Line- 0800 368 7619 Tel: 0208 6919 139 Fax- 0203 890 4465
A2: Info | B2: Response | C2: Comments
A3: Entity?
A4: Incorporated on
A5: Trading start date (If Ltd)
A6: Business name
A7: Company number (If Ltd)
A8: Trading name (If Ltd)
A9: Business Address
A10: Business Description(NEW)
A12: Director/owner 1
A13: Client phone number
A14: Client email address
A15: Client name
A16: Client D.O.B
A17: Client address
A18: How long they lived there
A19: Previous address if less than three years in the current address
A22: Director/owner 2
A23: Client phone number
A24: Client email address
A25: Client name
A26: Client D.O.B
A27: Client address
A28: How long they lived there
A29: Previous address if less than three years in the current address
A31: Home owner
A32: If they are homeowner:
A33: Purchase date
A34: Purcahse value
A35: Mortgage outstanding
A36: Mortgage lender
A37: Property type
A38: Current value
A39: Any other properties owned?
A41: Business bank name
A42: Any overdrafts | C42: Limit -
A43: Second business bank name (if applicable)
A44: Any overdrafts | C44: Limit -
A45: How many card machine in the business?
A46: Card machine provider
A47: Monthly card sales
A48: Monthly cash sales
A49: Accounts available?
A50: Annual Turnover*(NEW)
A52: Any personal or business CCJ on Current/previously owned business | C52: 2400£-
A53: Any credit default
A54: Missed payments in 6 months
A55: Applied with any other broker in the last 6 months
A56: Any business loans
A57: If so:
A58: Lender
A59: Amount borrowed
A60: Date borrowed
A61: Amount outstanding
A62: Any other loans?
A64: Lender
A65: Amount borrowed
A66: Date borrowed
A67: Amount outstanding
A68: Any other loans?
A70: Minimum amount needed to borrow
A71: Maximum amount
A72: Purpose
A73: Broker/referral
A74: Type of Loan Payment(NEW) | B74: Daily | C74: Weekly | D74: Monthly | E74: Card Mach Loan

Sheet Indicative term
A4: Business Name | B4: =Info!B6 -> 0
A5: Applicant Name | B5: =Info!B15 -> 0
A6: Business Address | B6: =Info!B9 -> 0
A8: Indicative Terms Subject to full underwriting
A9: Offer 1
B10: Merchant Cash Advance
A11: Loan Amount | B11: 29500
A12: Repayment Amount (£) | B12: =B11*1.21 -> 35695
A13: Term | B13: 6-9 Months
A14: Factor Rate | C14: =B12/B11 -> 1.21
A15: Percentage of Card Sales (%) | B15: 0.2
A17: Offer 2
B18: Daily DD Cash Advance
A19: Loan Amount | B19: =B11 -> 29500
A20: Repayment Amount (£) | B20: =B19*1.5 -> 44250
A21: Term | B21: 120
A22: Factor Rate | C22: =B20/B19 -> 1.5
A23: Percentage of Card Sales (%) | B23: =B20/B21 -> 368.75
A24: Offer 3
B25: Daily DD Cash Advance
A26: Loan Amount | B26: =B11 -> 29500
A27: Repayment Amount (£) | B27: =B26*1.41 -> 41595
A28: Term | B28: 120
A29: Factor Rate | C29: =B27/B26 -> 1.41
A30: Percentage of Card Sales (%) | B30: =B27/B28 -> 346.625
A31: Offer 4 | C31: MAX
B32: Weekly Loan
A33: Loan Amount | B33: =B11 -> 29500
A34: Repayment Amount (£) | B34: =B33*1.5 -> 44250
A35: Term in weeks | B35: 52
A36: Interst Per Annum | C36: =B34/B35*4.32/10000 -> 0.3676153846
A37: Monthly | B37: =B34/B35 -> 850.9615385
A38: Business X Bridge LTD, Devonshire House Business Centre, 29-31 Elmfield Road, Bromley, Kent, BR1 1LT W- www.businessxbridge.co.uk E- contact@businessxbridge.co.uk Hot Line- 0800 368 7619 Tel: 0208 6919 139 Fax- 0203 890 4465 BusinessxBrisge Limited is authorised and regulated by the Financial Conduct Authority (FCA) BusinessxBrisge is a Limited Company (9700905), we have a Data Protection Authorisation from the Information Commissioner’s Office (ZA141753).
A47: Conditionally Approved
A49: Offer 5 | B49: Adelpha Capital
E50: Total Repayment
A51: Loan Amount | B51: 100000 | E51: 228000
A52: Early Repayment Amount (£) | B52: 0
A53: Term in Month | B53: 60
A54: Interst Per Annum | C54: =E51/B53/10000 -> 0.38
A55: Monthly | B55: =E51/B53 -> 3800
A56: Offer 6 | B56: Adelpha Capital secured
A57: Loan Amount | B57: 60000 | E57: Total Repayment
A58: Early Repayment Amount (£) | B58: 0 | E58: 138000
A59: Term | B59: 60
A60: Interst Per Annum | C60: =E58/B59/10000 -> 0.23
A61: Monthly | B61: =E58/B59 -> 2300
A62: Offer 7 | B62: Funding Circle Good Credit
A63: Loan Amount | B63: 17426 | E63: Total Repayment
A64: Repayment Amount (£) | B64: 0 | E64: 21103
A65: Term | B65: 12
A66: Interst Per Annum | C66: =E64/B65/10000 -> 0.1758583333
A67: Monthly | B67: =E64/B65 -> 1758.583333
A68: Offer 8 | B68: Funding Circle High Risk Credit
A69: Loan Amount | B69: 55000 | E69: Total Repayment
A70: Early Repayment Amount (£) | B70: 0 | E70: 99000
A71: Term | B71: 52
A72: Interst Per Annum | C72: =E70/B71/10000 -> 0.1903846154
A73: Monthly | B73: =E70/B71 -> 1903.846154
A74: Business X Bridge LTD, Devonshire House Business Centre, 29-31 Elmfield Road, Bromley, Kent, BR1 1LT W- www.businessxbridge.co.uk E- contact@businessxbridge.co.uk Hot Line- 0800 368 7619 Tel: 0208 6919 139 Fax- 0203 890 4465 BusinessxBrisge Limited is authorised and regulated by the Financial Conduct Authority (FCA) BusinessxBrisge is a Limited Company (9700905), we have a Data Protection Authorisation from the Information Commissioner’s Office (ZA141753).

Sheet Lenders submitted to
A1: Code | B1: Lender | C1: Applied | D1: Date | E1: Outcome | F1: Comments
A2: YLDT | B2: YouLend
A3: Purple Box | B3: Liberis | M3: Accepted
A4: CaP | B4: Capify | M4: Rejected
A5: 24/7 | B5: 365
A6: March | B6: Merchant money
A7: P2PL | B7: Lending crowd
A8: P2PF | B8: Funding circle
A9: Max007 | B9: Maxcap
A10: GPNHS | B10: Got capital
A11: SF | B11: Swiftfund
A12: Alpha | B12: Adelpha
A13: Alpha | B13: Adelpha (secured)
A14: IWG | B14: Iwoca
A15: SW | B15: Swishfund
A16: MCL | B16: My cash line
A17: LB | B17: Little Business Loan
A18: CF/S | B18: Cubefunder
A19: RP | B19: Reparo Finance
A20: NW | B20: Natwest
A21: C4 | B21: Credit 4
A22: KF | B22: Kingsway finance
A23: SFBBB | B23: Swig Finance
A24: BEFBBB | B24: BEF
A25: FEBBB | B25: First Enterprise
A26: RS | B26: Rivers
A27: FC | B27: Federal Capital (Halo)
A30: ZOHO PURPOSE
A31: Case Manager | B31: Amount requested | C31: Amount funded | D31: Date funded
